bitfinex-derivatives/quotes_ETHF0:USTF0_20251003
["timestamp","ask_amount","ask_price","bid_price","bid_amount"]
[1759492952697,0.00214164,4485.6,4485.5,4.71591]
[1759492955102,0.00214164,4485.6,4485.5,4.3149]
[1759492955300,7.90055974,4485.6,4485.5,3.2078]
[1759492955594,0.7378,4485.1,4485.0,3.2078]
[1759492955893,8.36101205,4485.1,4485.0,3.2078]
[1759492956693,8.36101205,4485.1,4485.0,3.5357]
[1759492956895,8.36101205,4485.1,4485.0,3.7575]
[1759492957201,8.36101205,4485.1,4485.0,4.0976]
[1759492958001,8.36101205,4485.1,4485.0,3.9693]
[1759492960698,8.36101205,4485.1,4485.0,3.7575]
[1759492960900,8.36101205,4485.1,4485.0,3.5357]
[1759492962809,8.36101205,4485.1,4485.0,3.7575]
[1759492963705,8.36101205,4485.1,4485.0,0.3279]
[1759492964003,8.36101205,4485.1,4484.8,0.3279]
[1759492964201,0.7378,4484.9,4484.8,0.3279]
[1759492964398,1.20039395,4484.9,4484.8,0.3279]
[1759492964799,1.20039395,4484.9,4484.8,0.5497]
[1759492965500,1.20039395,4484.9,4484.6,0.00178988]
[1759492965708,7.8984181,4484.7,4484.6,0.00178988]
[1759492965910,8.36101205,4484.7,4484.6,0.00178988]
[1759492966205,8.36101205,4484.7,4484.6,0.32968988]
[1759492967302,8.36101205,4484.7,4484.6,0.76328988]
[1759492967503,8.03991205,4484.7,4484.6,0.76328988]
[1759492968007,8.36101205,4484.7,4484.6,0.76328988]
[1759492968408,8.36101205,4484.7,4484.6,0.55148988]
[1759492968604,8.36101205,4484.7,4484.6,0.32968988]
[1759492970209,1.20039395,4484.7,4484.6,0.32968988]
[1759492970706,0.6397,4485.4,4485.3,0.2218]
[1759492970914,0.87920251,4485.4,4485.3,0.7615]
[1759492971212,0.66610251,4485.4,4485.3,0.7615]
[1759492971911,0.66608447,4485.4,4485.3,0.7615]
[1759492972111,0.2036,4485.4,4485.3,0.7615]
[1759492972612,0.66611899,4485.4,4485.3,0.7615]
[1759492977908,0.223,4486.1,4485.4,0.40101]
[1759492978108,0.223,4486.0,4485.5,4.49861]
[1759492978308,0.46487793,4485.6,4485.5,4.49861]
[1759492978604,0.46487793,4485.6,4485.5,4.0976]
[1759492979406,0.46487793,4485.6,4485.5,4.49861]
[1759492979607,0.46487793,4485.6,4485.5,4.0976]
[1759492980005,0.46487793,4485.6,4485.5,4.49861]
[1759492982716,0.00214164,4485.6,4485.5,4.49861]
[1759492983824,0.00214164,4485.6,4485.5,4.0976]
[1759492984119,0.00214164,4485.6,4485.5,4.49861]
[1759492985016,0.00214164,4485.6,4485.5,4.0976]
[1759492985217,8.39660355,4485.6,4485.5,3.7575]
[1759492985521,8.39660355,4485.6,4485.5,3.7544]
[1759492985714,8.39660355,4485.6,4485.5,3.8764]
[1759492985913,0.46498545,4485.6,4485.5,4.71841]
[1759492986310,0.00214164,4485.6,4485.5,4.71841]
[1759492989726,0.00214164,4485.6,4485.5,4.3174]
[1759492990230,0.00214164,4485.6,4485.5,4.71841]
[1759492993029,0.22224164,4485.6,4485.5,4.71841]
[1759492993734,0.00214164,4485.6,4485.5,4.71841]
[1759492994035,0.43884164,4485.6,4485.5,4.0944]
[1759492994335,7.93375974,4485.6,4485.5,4.0944]
[1759492998339,8.3953657,4485.6,4485.5,4.0944]
[1759492998837,8.3953657,4485.6,4485.5,3.9724]
[1759492999335,8.3953657,4485.6,4485.5,3.7544]
[1759492999544,8.3953657,4485.6,4485.5,3.2078]
[1759492999842,8.3953657,4485.6,4485.5,3.5139]
[1759493001036,8.3953657,4485.6,4485.5,4.0726]
[1759493006836,8.3953657,4485.6,4485.5,3.2078]
[1759493007639,8.3953657,4485.6,4485.5,3.5239]
[1759493009147,8.6183657,4485.6,4485.5,3.5239]
[1759493009842,8.3953657,4485.6,4485.5,3.7362]
[1759493010047,8.6183657,4485.6,4485.5,3.7362]
[1759493011246,8.3953657,4485.6,4485.5,3.7362]
[1759493011542,8.6183657,4485.6,4485.5,3.7362]
[1759493012443,8.6183657,4485.6,4485.5,3.861]
[1759493012646,8.6183657,4485.6,4485.5,4.0763]
[1759493012846,8.3953657,4485.6,4485.5,4.0763]
[1759493013049,8.6183657,4485.6,4485.5,4.0763]
[1759493014848,8.6183657,4485.6,4485.5,3.9515]
[1759493015046,8.6183657,4485.6,4485.5,3.7362]
[1759493015248,8.6183657,4485.6,4485.5,3.5239]
[1759493017547,8.6183657,4485.6,4485.5,3.2078]
[1759493017847,8.6183657,4485.6,4485.5,3.5306]
[1759493018550,8.6183657,4485.6,4485.5,3.7481]
[1759493018745,8.6183657,4485.6,4485.5,4.0882]
[1759493019748,8.0610657,4485.6,4485.5,4.0882]
[1759493019949,8.6076657,4485.6,4485.5,4.0882]
[1759493021437,8.2840657,4485.6,4485.5,4.0882]
[1759493023848,8.6076657,4485.6,4485.5,4.0882]
[1759493030551,8.3846657,4485.6,4485.5,4.0882]
[1759493030757,8.0610657,4485.6,4485.5,4.0882]
[1759493031051,8.2840657,4485.6,4485.5,4.0882]
[1759493032348,7.82245974,4485.6,4485.5,4.0882]
[1759493033749,7.38575974,4485.6,4485.5,4.0882]
[1759493034352,7.84917542,4485.6,4485.5,4.0882]
[1759493034959,7.62617542,4485.6,4485.5,4.0882]
[1759493035157,7.62617264,4485.6,4485.5,4.0882]
[1759493035361,7.62617264,4485.6,4485.5,4.48921]
[1759493035660,0.46555454,4485.6,4485.5,4.48921]
[1759493036460,0.46555454,4485.6,4485.5,4.0882]
[1759493037064,0.46554391,4485.6,4485.5,4.0882]
[1759493037362,0.67974391,4485.6,4485.5,4.0882]
[1759493038658,0.46554391,4485.6,4485.5,4.0882]
[1759493038964,0.28881457,4485.6,4485.5,9.48921]
[1759493039159,0.7524,4486.9,4486.8,0.7556]
[1759493039360,0.8594,4486.9,4486.8,0.7556]
[1759493039957,0.86163633,4486.9,4486.8,0.3228]
[1759493040161,0.2142,4486.5,4486.4,0.5458]
[1759493040362,0.3236,4486.2,4485.7,0.3228]
[1759493040567,0.7524,4485.8,4485.7,0.5403]
[1759493041062,7.9130181,4485.8,4485.7,0.3228]
[1759493041858,7.9130181,4485.8,4485.5,0.223]
[1759493042061,0.748,4485.6,4485.5,0.223]
[1759493042563,7.9086181,4485.6,4485.5,0.223]
[1759493043362,7.9086181,4485.6,4485.5,0.5412]
[1759493044267,7.9086181,4485.6,4485.5,0.3182]
[1759493046168,0.748,4485.3,4485.2,0.3182]
[1759493046665,7.9086181,4485.3,4485.2,0.3182]
[1759493048065,7.9086181,4485.3,4485.2,0.5322]
[1759493048571,8.1316181,4485.3,4485.2,0.5322]
[1759493049370,7.8141181,4485.3,4485.2,0.7356]
[1759493049965,8.1316181,4485.3,4485.2,0.7356]
[1759493050672,8.1316181,4485.3,4485.2,0.5322]
[1759493050970,8.59389272,4485.3,4485.2,0.5322]
[1759493052769,1.43327462,4485.3,4485.2,0.5322]
[1759493052964,8.59389272,4485.3,4485.2,0.5322]
[1759493053372,8.59389272,4485.3,4485.2,0.7356]
[1759493053969,8.27639272,4485.3,4485.2,0.7356]
[1759493055076,8.59389272,4485.3,4485.2,0.7356]
[1759493061679,8.59389272,4485.3,4485.2,0.5322]
[1759493061975,8.59389272,4485.3,4485.1,3.4308]
[1759493062178,8.37089272,4485.2,4485.1,3.4308]
[1759493062575,1.21027462,4485.2,4485.1,3.4308]
[1759493063174,1.21027462,4485.2,4485.1,3.749]
[1759493065775,1.21027462,4485.2,4485.1,3.2078]
[1759493065985,0.7252,4484.7,4484.6,3.43258988]
[1759493066174,1.18747462,4484.7,4484.6,3.20958988]
[1759493067583,0.88437462,4484.7,4484.6,3.94238988]
[1759493069674,0.46227462,4484.7,4484.6,4.34347988]
[1759493069874,0.46421632,4485.1,4485.0,0.4283]
[1759493070079,7.62483442,4485.1,4485.0,0.855]
[1759493070379,7.83973442,4485.1,4485.0,0.855]
[1759493072178,8.37403442,4485.1,4485.0,0.855]
[1759493072879,0.107,4485.0,4484.6,3.20958988]
[1759493073083,0.107,4485.0,4483.9,0.3106]
[1759493073084,0.7628,4484.0,4483.9,0.3106]
[1759493073273,0.89991632,4484.0,4483.7,0.3106]
[1759493073583,0.7628,4483.8,4483.7,0.3106]
[1759493073878,8.38763442,4483.8,4483.7,0.3106]
[1759493074082,8.38763442,4483.8,4483.7,0.31258808]
[1759493075178,8.38763442,4483.8,4483.7,0.00198808]
[1759493075478,13.38763442,4483.8,4482.7,0.3106]
[1759493075676,0.7628,4482.8,4482.7,0.3106]
[1759493075982,1.22701632,4482.8,4482.7,0.3106]
[1759493076281,7.9234181,4482.8,4482.7,0.5177]
[1759493076484,7.9234181,4482.8,4482.7,0.52033316]
[1759493076485,7.92623288,4482.8,4482.7,0.52033316]
[1759493076783,7.92623288,4482.8,4482.7,0.72643316]
[1759493077980,8.38941104,4482.8,4482.7,0.72643316]
[1759493078175,8.38941104,4482.8,4482.7,0.52033316]
[1759493079082,7.92623288,4482.8,4482.7,0.52033316]
[1759493079381,7.92623288,4482.8,4482.7,0.00263316]
[1759493081183,7.92623288,4482.8,4482.7,0.52033316]
[1759493081383,7.59913288,4482.8,4482.7,0.72643316]
[1759493081684,7.92623288,4482.8,4482.7,0.72643316]
[1759493082787,7.92623288,4482.8,4482.7,0.31323316]
[1759493085382,0.76561478,4482.8,4482.7,0.00263316]
[1759493085691,7.92623288,4482.8,4482.7,0.00263316]
[1759493088193,7.92623288,4482.8,4482.7,0.31323316]
[1759493088392,7.92623288,4482.8,4482.7,0.00263316]
[1759493089091,11.13403288,4482.8,4482.7,0.00263316]
[1759493091294,11.35703288,4482.8,4482.7,0.00263316]
[1759493094287,16.35703288,4482.8,4481.9,0.3106]
[1759493094493,0.7628,4481.7,4481.6,0.3106]
[1759493094696,0.7628,4481.7,4481.4,0.3106]
[1759493094886,0.7628,4481.5,4481.4,0.3106]
[1759493095094,0.7628,4481.5,4481.4,0.52047637]
[1759493095286,7.9234181,4481.5,4481.4,0.52047637]
[1759493095495,7.9234181,4481.5,4481.4,0.72657637]
[1759493095696,7.5963181,4481.5,4481.4,0.72657637]
[1759493097399,7.5963181,4481.5,4481.4,1.12794637]
[1759493098100,0.2206,4481.5,4481.4,1.12794637]
[1759493098600,0.2206,4481.8,4481.7,0.7238]
[1759493098900,0.3271,4482.1,4481.7,1.12515]
[1759493099101,0.3271,4482.4,4481.8,0.3106]
[1759493099400,7.4877181,4482.4,4481.8,0.3106]
[1759493099595,7.9234181,4482.3,4482.2,0.5177]
[1759493099797,0.7628,4482.3,4482.2,0.5177]
[1759493099992,7.9234181,4482.3,4482.2,0.5177]
[1759493100389,7.9234181,4482.3,4481.7,3.2078]
[1759493100390,7.5963181,4482.3,4481.8,0.3106]
[1759493100594,0.4357,4481.9,4481.8,0.3106]
[1759493100790,0.4357,4481.9,4481.7,3.2078]
[1759493101000,0.4357,4481.9,4481.4,0.00277637]
[1759493101001,0.5437,4481.5,4481.4,0.00277637]
[1759493101206,8.0314181,4481.5,4481.4,0.00277637]
[1759493101401,8.2544181,4481.5,4481.4,0.00277637]
[1759493101702,13.72042337,4481.5,4481.4,0.00277637]
[1759493101902,13.72042337,4481.5,4480.4,0.3097]
[1759493102102,0.741,4480.5,4480.4,0.3097]
[1759493102599,7.9016181,4480.5,4480.4,0.3097]
[1759493102991,7.9016181,4480.5,4480.4,0.31243929]
[1759493103795,7.9016181,4480.5,4480.4,0.51983929]
[1759493104502,7.9016181,4480.5,4480.4,0.31243929]
[1759493105393,7.9016181,4480.5,4480.4,0.51983929]
[1759493105999,7.3632181,4480.5,4480.4,0.72343929]
[1759493106193,0.2026,4480.5,4480.4,0.72343929]
[1759493107008,1.14241,4481.0,4480.9,0.5171]
[1759493107410,8.3030281,4481.0,4480.9,0.5171]
[1759493109199,7.9828281,4481.0,4480.9,0.7207]
[1759493109395,7.5814181,4481.0,4480.9,0.7207]
[1759493109708,0.2026,4481.0,4480.9,0.7207]
[1759493109906,3.2078,4481.2,4481.1,0.7207]
[1759493110406,3.4104,4481.2,4481.1,0.7207]
[1759493110705,0.2026,4481.2,4481.1,0.7207]
[1759493112301,0.4208,4481.2,4481.1,0.7207]
[1759493116904,3.2078,4481.8,4481.2,0.71109]
[1759493117210,3.9488,4481.8,4481.7,0.5171]
[1759493117398,4.4143923,4481.8,4481.7,0.5171]
[1759493117706,11.5750104,4481.8,4481.7,0.3097]
[1759493117907,11.5750104,4481.8,4481.0,0.3542]
[1759493118209,0.2026,4481.2,4481.1,0.7207]
[1759493118601,0.2026,4481.2,4481.1,1.1221]
[1759493119111,0.3202,4481.6,4481.2,0.40139]
[1759493119307,0.741,4481.6,4481.5,0.3386]
[1759493119506,1.20680765,4481.6,4481.5,0.6483]
[1759493119706,8.36742575,4481.6,4481.5,0.6483]
[1759493120205,8.36742575,4481.6,4481.5,0.8519]
[1759493120703,8.04722575,4481.6,4481.5,0.8519]
[1759493120908,0.66840765,4481.6,4481.5,0.8519]
[1759493121107,1.20680765,4481.6,4481.5,0.8519]
[1759493122304,0.88660765,4481.6,4481.5,1.25327]
[1759493122509,0.66840765,4481.6,4481.5,1.25327]
[1759493123910,0.66840765,4481.6,4481.5,0.8519]
[1759493124407,0.88660765,4481.6,4481.5,0.8519]
[1759493124707,1.20680765,4481.6,4481.5,0.8519]
[1759493126308,0.46580765,4481.6,4481.5,1.25327]
[1759493126612,0.46580765,4481.6,4481.5,6.25327]
[1759493126806,3.4249,4482.3,4482.2,0.7493]
[1759493127006,7.84419278,4482.3,4482.2,0.7493]
[1759493127210,8.06073536,4482.3,4482.2,0.7493]
[1759493127406,8.37153536,4482.3,4482.2,0.7493]
[1759493128311,8.37153536,4482.3,4482.2,0.5465]
[1759493128507,0.2171,4481.6,4481.5,0.95456]
[1759493128714,0.2171,4481.6,4481.5,1.17756]
[1759493129107,0.5279,4481.9,4481.8,0.7493]
[1759493129307,0.2171,4481.9,4481.8,0.7493]
[1759493129810,3.21061478,4482.8,4482.0,0.1234]
[1759493130015,7.1606181,4482.4,4482.3,0.3273]
[1759493130215,7.84413152,4482.4,4482.3,0.7493]
[1759493130414,7.84413152,4482.4,4482.3,1.15059]
[1759493130614,7.1606181,4482.4,4482.3,1.15059]
[1759493131415,7.1606181,4482.4,4482.3,0.7493]
[1759493131717,7.3777181,4482.4,4482.3,0.7493]
[1759493131915,7.5943181,4482.4,4482.3,0.7493]
[1759493132411,7.5943181,4482.4,4482.3,0.5465]
[1759493132616,7.5943181,4482.4,4482.2,0.323]
[1759493132617,7.9037181,4482.4,4482.2,0.323]
[1759493132817,7.8751181,4482.3,4482.2,0.546]
[1759493133019,7.8751181,4482.3,4482.2,0.223]
[1759493134626,7.8751181,4482.3,4482.2,0.546]
[1759493137334,7.8751181,4482.3,4482.2,0.223]
[1759493139530,0.3094,4481.9,4481.7,0.40135]
[1759493139733,0.7145,4481.9,4481.8,0.94734]
[1759493139933,0.7145,4481.9,4481.8,1.15874]
[1759493140137,0.3094,4481.8,4481.5,3.5308]
[1759493140430,0.7145,4481.6,4481.5,3.4308]
[1759493141530,7.8751181,4481.6,4481.5,3.4308]
[1759493141731,7.8751181,4481.6,4481.1,0.4014]
[1759493141732,0.108,4481.5,4481.1,0.323]
[1759493142039,0.7145,4481.2,4481.1,0.323]
[1759493142335,0.7145,4481.2,4481.1,0.7574]
[1759493143834,0.7145,4481.2,4481.1,0.9692]
[1759493144039,0.2027,4481.6,4481.5,0.5502]
[1759493144339,7.3633181,4481.6,4481.5,0.8732]
[1759493144635,7.5657181,4481.6,4481.5,1.0962]
[1759493145027,7.8751181,4481.6,4481.5,1.0962]
[1759493145839,0.4051,4481.6,4481.5,1.0962]
[1759493146235,0.7351,4482.3,4482.2,0.2114]
[1759493146534,1.40342218,4482.3,4482.2,0.323]
[1759493146737,8.56404028,4482.3,4482.2,0.323]
[1759493147345,8.34104028,4482.3,4482.2,0.323]
[1759493148640,8.34104028,4482.3,4482.2,0.5344]
[1759493149334,0.87102218,4482.3,4482.2,0.7462]
[1759493149541,0.4051,4482.3,4482.2,0.7462]
[1759493150241,0.87119077,4482.3,4482.2,0.7462]
[1759493150440,0.46609077,4482.3,4482.2,0.7462]
[1759493150833,0.66879077,4482.3,4482.2,0.7462]
[1759493152538,0.46609077,4482.3,4482.2,0.7462]
[1759493152744,0.71731478,4482.8,4482.7,0.5344]
[1759493152946,7.87793288,4482.8,4482.7,0.7574]
[1759493154845,7.87793288,4482.8,4482.7,0.223]
[1759493157747,7.87793288,4482.8,4482.4,0.323]
[1759493157941,0.2027,4482.2,4482.1,3.954]
[1759493158144,0.2027,4482.2,4482.1,4.177]
[1759493158746,0.2027,4482.2,4482.1,4.57831]
[1759493159641,0.2027,4482.4,4482.3,0.82449]
[1759493159849,7.3633181,4482.6,4482.5,0.5502]
[1759493160035,7.3633181,4482.6,4482.5,0.8732]
[1759493160242,7.3633181,4482.6,4482.5,1.0962]
[1759493161246,0.00281478,4482.8,4482.5,0.7732]
[1759493161442,7.1606181,4482.7,4482.6,0.323]
[1759493161642,0.00281478,4482.8,4482.7,1.14746]
[1759493163649,0.20531478,4482.8,4482.7,1.37046]
[1759493165750,0.00281478,4482.8,4482.7,1.37046]
[1759493168846,0.00281478,4482.8,4482.7,1.14746]
[1759493169050,0.00281478,4482.8,4482.7,1.37046]
[1759493169244,0.72551478,4482.8,4482.7,0.5344]
[1759493169554,7.88613288,4482.8,4482.7,0.546]
[1759493171253,7.88613288,4482.8,4482.7,0.323]
[1759493171453,7.88613288,4482.8,4482.7,0.546]
[1759493172051,7.88613288,4482.8,4482.7,0.223]
[1759493172448,7.88613288,4482.8,4482.7,0.5324]
[1759493173554,7.88613288,4482.8,4482.1,3.2078]
[1759493173756,7.88613288,4482.8,4482.2,0.9583]
[1759493173757,0.7227,4482.3,4482.2,0.9583]
[1759493175655,0.7227,4482.3,4482.2,1.3596]
[1759493175960,0.408,4482.3,4482.2,1.3596]
[1759493176553,0.3147,4482.6,4482.3,0.40128]
[1759493176758,7.3631181,4482.5,4482.4,0.82718]
[1759493177058,0.2025,4482.5,4482.4,0.9583]
[1759493177260,7.3631181,4482.5,4482.4,0.9583]
[1759493179957,7.5686181,4482.5,4482.4,0.9583]
[1759493180456,7.5686181,4482.5,4482.4,0.7353]
[1759493180759,0.3147,4482.4,4482.3,0.223]
[1759493180959,0.3147,4482.4,4482.2,0.3094]
[1759493180960,7.8833181,4482.4,4482.2,0.3094]
[1759493181159,7.8833181,4482.3,4482.2,0.3094]
[1759493181361,0.7227,4482.3,4482.2,0.5324]
[1759493181548,7.8833181,4482.3,4482.2,0.5324]
[1759493182156,7.8833181,4482.3,4482.2,0.223]
[1759493182357,7.8833181,4482.3,4482.2,0.5324]
[1759493183263,7.8833181,4482.3,4482.2,0.7387]
[1759493183453,7.5686181,4482.3,4482.2,1.14]
[1759493183659,0.31751478,4482.8,4482.2,1.0502]
[1759493183860,8.34862829,4482.7,4482.6,0.7353]
[1759493184165,8.34862829,4482.7,4482.6,0.9583]
[1759493184364,1.18801019,4482.7,4482.6,0.9583]
[1759493185454,1.18801019,4482.7,4482.6,0.7353]
[1759493186252,1.18801019,4482.7,4482.6,0.5157]
[1759493187353,1.18801019,4482.7,4482.6,4.33977]
[1759493187354,0.46531019,4482.7,4482.6,4.33977]
[1759493187556,0.00281478,4482.8,4482.7,0.3193]
[1759493187857,0.00281478,4482.8,4482.7,0.7443]
[1759493188762,0.00281478,4482.8,4482.7,1.14556]
[1759493193166,0.00281478,4482.8,4482.7,0.7443]
[1759493193371,7.92163288,4482.8,4482.7,0.7443]
[1759493193562,8.38708325,4482.8,4482.7,0.9673]
[1759493193761,8.38708325,4482.8,4482.7,0.7523]
[1759493193958,0.3239,4482.7,4482.2,0.3129]
[1759493194269,0.4343,4482.3,4482.2,0.7404]
[1759493194469,0.4343,4482.3,4482.2,0.9634]
[1759493194971,0.32671478,4482.8,4482.2,1.3647]
[1759493195267,0.2105,4482.6,4482.5,0.8727]
[1759493195464,0.67599737,4482.6,4482.5,1.0957]
[1759493195660,8.38431547,4482.6,4482.5,0.7426]
[1759493195868,8.38431547,4482.6,4482.5,0.3129]
[1759493196058,8.38431547,4482.6,4482.5,0.5359]
[1759493196264,8.38431547,4482.6,4482.5,0.7426]
[1759493196570,8.38431547,4482.6,4482.5,0.5359]
[1759493197071,8.38431547,4482.6,4482.5,0.3129]
[1759493197670,8.38431547,4482.6,4482.5,0.5359]
[1759493198059,8.06041547,4482.6,4482.0,4.9339591]
[1759493198359,0.4343,4482.2,4482.1,0.6505]
[1759493198557,0.3239,4482.1,4482.0,3.3354]
[1759493198770,7.9188181,4482.1,4482.0,4.078]
[1759493199675,7.9188181,4482.1,4482.0,4.2988]
[1759493201974,0.7582,4482.1,4482.0,4.2988]
[1759493202174,7.9188181,4482.1,4482.0,4.2988]
[1759493203576,7.9188181,4482.1,4482.0,4.70012]
[1759493204171,7.5949181,4482.1,4482.0,4.70012]
[1759493204379,7.1606181,4482.1,4482.0,4.70012]
[1759493208669,0.3239,4482.5,4482.0,4.2988]
[1759493208876,7.1606181,4482.6,4482.4,0.7404]
[1759493209183,7.1606181,4482.7,4482.6,1.14167]
[1759493209478,7.62598443,4482.7,4482.6,1.36467]
[1759493210293,0.46536633,4482.7,4482.6,1.36467]
[1759493212279,0.00281478,4482.8,4482.7,0.40126]
[1759493212483,0.00281478,4482.8,4482.7,1.14166]
[1759493212685,0.46814132,4482.8,4482.7,1.14166]
[1759493213887,0.00281478,4482.8,4482.7,1.14166]
[1759493215978,0.46804072,4482.8,4482.7,1.14166]
[1759493218088,0.67854072,4482.8,4482.7,1.14166]
[1759493220391,0.67854072,4482.8,4482.7,0.7404]
[1759493220594,0.67854072,4482.8,4482.7,1.14166]
[1759493222292,0.67854072,4482.8,4482.7,1.36466]
[1759493222793,0.67854072,4482.8,4482.7,0.7404]
[1759493222794,1.20514072,4482.8,4482.7,0.7404]
[1759493222989,8.36575882,4482.8,4482.7,0.5359]
[1759493223188,0.4322,4482.6,4482.5,3.2078]
[1759493223388,8.37144404,4482.6,4482.5,3.4308]
[1759493223588,8.37144404,4482.6,4482.5,3.7537]
[1759493224393,8.05804404,4482.6,4482.5,4.3219]
[1759493224697,8.37144404,4482.6,4482.5,4.3219]
[1759493225995,8.37144404,4482.6,4482.5,3.9686]
[1759493227296,8.37144404,4482.6,4482.5,3.2078]
[1759493227594,8.05804404,4482.6,4482.5,0.223]
[1759493227994,8.37144404,4482.6,4482.5,0.223]
[1759493228905,0.7456,4482.2,4482.1,0.3229]
[1759493229202,1.21082594,4482.2,4482.1,0.3229]
[1759493229391,1.21082594,4482.2,4482.1,0.5459]
[1759493229590,1.21082594,4482.2,4482.0,3.2078]
[1759493229591,0.89742594,4482.2,4482.0,3.2078]
[1759493229799,0.7456,4481.9,4481.8,0.3229]
[1759493229997,7.9062181,4481.9,4481.8,0.5459]
[1759493230199,0.7456,4481.9,4481.8,0.223]
[1759493230797,0.7456,4481.9,4481.8,0.5459]
[1759493232492,0.7456,4481.9,4481.8,0.223]
[1759493232694,0.7456,4481.9,4481.8,0.5459]
[1759493233095,0.7456,4481.9,4481.8,0.7608]
[1759493233899,0.4322,4481.9,4481.8,0.9805]
[1759493234102,0.219,4481.9,4481.8,0.9805]
[1759493234602,0.3134,4482.7,4482.2,0.3229]
[1759493234795,0.68432107,4482.6,4482.5,0.5682]
[1759493234998,7.84493917,4482.6,4482.5,0.5682]
[1759493235199,7.84493917,4482.6,4482.5,0.8911]
[1759493236204,8.05813917,4482.6,4482.5,0.8911]
[1759493236400,8.37153917,4482.6,4482.5,0.8911]
[1759493236892,8.37153917,4482.6,4482.3,0.5459]
[1759493237092,0.7456,4482.4,4482.3,0.3229]
[1759493237300,0.7456,4482.4,4482.3,0.5459]
[1759493237901,0.7456,4482.4,4482.3,0.7608]
[1759493238300,0.4322,4482.4,4482.3,0.9805]
[1759493240206,0.7456,4482.4,4482.3,0.9805]
[1759493240804,0.7456,4482.4,4482.3,0.7575]
[1759493241000,0.7456,4482.4,4482.3,0.9805]
[1759493241198,0.219,4482.4,4482.3,1.38179]
[1759493241401,0.219,4482.6,4482.5,0.1336]
[1759493241700,0.89747154,4482.6,4482.5,0.8911]
[1759493242006,8.37148964,4482.6,4482.5,0.8911]
[1759493242199,8.37148964,4482.6,4482.5,1.1141]
[1759493243609,7.84488964,4482.6,4482.5,1.51538]
[1759493243806,0.219,4482.6,4482.5,1.51538]
[1759493244110,0.00281478,4482.8,4482.7,0.7575]
[1759493244306,7.62872883,4482.8,4482.7,0.7575]
[1759493244506,7.84772883,4482.8,4482.7,0.7575]
[1759493245007,7.38243288,4482.8,4482.7,1.15876]
[1759493245704,0.00281478,4482.8,4482.7,4.36656]
[1759493248711,3.4245,4483.8,4483.7,0.7509]
[1759493248918,3.88964634,4483.8,4483.7,0.9739]
[1759493249204,11.58566444,4483.8,4483.7,0.9739]
[1759493249710,11.58841784,4483.8,4483.7,0.97625651]
[1759493251606,0.46789974,4483.8,4483.7,1.37742651]
[1759493252007,0.0027534,4483.8,4483.7,1.37742651]
[1759493253807,0.2233534,4483.8,4483.7,0.97815651]
[1759493254314,0.0027534,4483.8,4483.7,0.97815651]
[1759493256308,0.0027534,4483.8,4483.7,4.18595651]
[1759493257928,0.089,4484.4,4484.3,1.15631]
[1759493258126,3.2078,4485.0,4484.8,0.4269]
[1759493258127,0.3096,4484.9,4484.8,0.4269]
[1759493258424,7.71351083,4484.9,4484.8,0.9782]
[1759493258618,0.089,4484.9,4484.8,0.9782]
[1759493258826,0.09140625,4484.9,4484.8,0.9782]
[1759493260722,3.4284,4485.6,4485.5,0.8834]
[1759493260919,3.2078,4486.2,4486.1,0.4269]
[1759493261128,3.2078,4486.2,4486.1,0.9782]
[1759493261829,3.20973963,4486.2,4486.1,0.9782]
[1759493263120,0.00193963,4486.2,4486.1,0.9782]
[1759493264435,3.4284,4487.2,4487.1,0.7552]
[1759493264726,3.5417,4487.8,4487.1,0.9782]
[1759493264927,7.1606181,4487.7,4487.2,0.3283]
[1759493265136,7.9251181,4487.7,4487.6,0.3283]
[1759493265321,7.9251181,4487.7,4487.6,0.00194156]
[1759493265322,0.7673815,4487.7,4487.6,0.00194156]
[1759493269537,5.7673815,4487.7,4487.6,0.00194156]
[1759493269727,5.7673815,4487.7,4486.0,0.1282]
[1759493269924,0.7645,4486.5,4486.4,0.7552]
[1759493270326,0.7645,4486.5,4486.4,0.5513]
[1759493270727,0.7645,4486.5,4486.4,0.77086157]
[1759493272235,0.7645,4486.5,4486.4,0.54786157]
[1759493272434,0.7645,4486.5,4486.4,0.77086157]
[1759493273433,7.9251181,4486.5,4486.4,0.00286157]
[1759493273737,8.0295181,4486.5,4486.4,0.00286157]
[1759493274436,7.9251181,4486.5,4486.4,0.33116157]
[1759493275034,7.9251181,4486.5,4486.4,0.00286157]
[1759493275430,0.3339,4486.4,4485.3,3.5361]
[1759493275635,0.7645,4485.4,4485.3,3.7528]
[1759493276132,0.7645,4485.4,4485.3,0.223]
[1759493276639,0.7645,4485.4,4485.3,0.22565179]
[1759493276840,0.7645,4485.4,4485.3,0.00265179]
[1759493280537,0.3339,4485.9,4485.3,0.42955179]
[1759493280740,7.3812181,4485.8,4485.7,0.7552]
[1759493280929,7.5912181,4485.8,4485.7,0.7552]
[1759493281131,7.9251181,4485.8,4485.7,0.545]
[1759493281533,0.4306,4485.6,4485.5,0.3283]
[1759493281739,0.1086,4485.5,4485.3,0.00265179]
[1759493281939,7.9201181,4485.4,4485.3,0.00265179]
[1759493282440,0.7595,4485.4,4485.3,0.00265179]
[1759493283830,0.7595,4485.4,4485.3,0.31085179]
[1759493284236,0.7595,4485.4,4485.3,0.00265179]
[1759493285434,0.3214,4484.6,4484.3,0.3082]
[1759493285737,7.9201181,4484.3,4484.2,3.2078]
[1759493286541,7.92193237,4484.3,4484.2,3.21022828]
[1759493286745,7.92193237,4484.3,4484.2,3.51842828]
[1759493286935,7.92193237,4484.3,4484.2,3.72132828]
[1759493287331,7.60053237,4484.3,4484.2,3.93842828]
[1759493288543,7.92193237,4484.3,4484.2,0.73062828]
[1759493293348,7.92193237,4484.3,4484.2,0.00242828]
[1759493294040,8.14493237,4484.3,4483.6,3.516]
[1759493294242,0.7595,4483.7,4483.6,3.739]
[1759493295034,0.7595,4483.7,4483.2,0.3082]
[1759493295239,0.7595,4482.8,4482.7,0.5111]
[1759493295648,0.7595,4482.8,4482.7,0.7341]
[1759493295847,7.9201181,4482.8,4482.7,0.5111]
[1759493296044,7.9201181,4482.8,4482.7,0.5312]
[1759493296342,7.9201181,4482.8,4482.7,0.22547201]